fUST/lending_fUST_20250211
["ID","MTS","AMOUNT","RATE_DAILY","PERIOD"]
[352726106,1739279440879,-500.0,0.00010958,2]
[352726108,1739279440889,-683.18,0.00010958,2]
[352726110,1739279440898,-308.21101675,0.00010958,2]
[352726112,1739279440908,-500.0,0.00010958,2]
[352726114,1739279440917,-1341.11,0.00010958,2]
[352726116,1739279440926,-1398.12,0.00010958,2]
[352726118,1739279440936,-500.0,0.00010958,2]
[352726120,1739279440945,-5083.62,0.00010958,2]
[352726122,1739279440955,-1178.99,0.00010958,2]
[352726124,1739279440966,-500.0,0.00010958,2]
[352726126,1739279440976,-500.0,0.00010958,2]
[352726128,1739279440986,-509.78385253,0.00010958,2]
[352726130,1739279440996,-792.97,0.00010958,2]
[352726132,1739279441006,-500.0,0.00010958,2]
[352726134,1739279441015,-500.0,0.00010958,2]
[352726136,1739279441025,-526.29,0.00010958,2]
[352726138,1739279441034,-500.0,0.00010958,2]
[352726140,1739279441045,-500.0,0.00010958,2]
[352726142,1739279441054,-512.87006391,0.00010958,2]
[352726144,1739279441064,-500.0,0.00010958,2]
[352726146,1739279441073,-565.38,0.00010958,2]
[352726148,1739279441083,-828.4,0.00010958,2]
[352726150,1739279441092,-1636.11,0.00010958,2]
[352726152,1739279441102,-500.0,0.00010958,2]
[352726154,1739279441111,-500.0,0.00010958,2]
[352726156,1739279441120,-568.03,0.00010958,2]
[352726158,1739279441130,-690.35,0.00010958,2]
[352726160,1739279441139,-2550.61,0.00010958,2]
[352726162,1739279441148,-500.0,0.00010958,2]
[352726164,1739279441157,-769.56,0.00010958,2]
[352726166,1739279441167,-2187.44,0.00010958,2]
[352726168,1739279441176,-500.0,0.00010958,2]
[352726170,1739279441186,-500.0,0.00010958,2]
[352726172,1739279441195,-4358.28,0.00010958,2]
[352726174,1739279441205,-9399.26,0.00010958,2]
[352726176,1739279441216,-621.6,0.00010958,2]
[352726178,1739279441226,-500.0,0.00010958,2]
[352726180,1739279441237,-2208.14,0.00010958,2]
[352726182,1739279441247,-500.0,0.00010958,2]
[352726184,1739279441256,-168.24611049,0.00010959,2]
[352726186,1739279441266,-326.09,0.00010959,2]
[352726188,1739279441276,-271.74,0.00010959,2]
[352726190,1739279441285,-4274.75519598,0.00010995,2]
[352726192,1739279441295,-500.0,0.00011,2]
[352726194,1739279441304,-500.0,0.00011,2]
[352726196,1739279441313,-500.0,0.00011,2]
[352726198,1739279441323,-500.0,0.00011,2]
[352726200,1739279441333,-500.0,0.00011,2]
[352726202,1739279441343,-500.0,0.00011,2]
[352726204,1739279441352,-500.0,0.00011,2]
[352726206,1739279441361,-500.0,0.00011,2]
[352726208,1739279441371,-500.0,0.00011,2]
[352726210,1739279441381,-500.0,0.00011,2]
[352726212,1739279441391,-500.0,0.00011,2]
[352726215,1739279441403,-500.0,0.00011,2]
[352726217,1739279441413,-500.0,0.00011,2]
[352726218,1739279441423,-500.0,0.00011,2]
[352726220,1739279441432,-500.0,0.00011,2]
[352726222,1739279441442,-500.0,0.00011,2]
[352726224,1739279441451,-500.0,0.00011,2]
[352726226,1739279441461,-500.0,0.00011,2]
[352726228,1739279441470,-500.0,0.00011,2]
[352726230,1739279441480,-500.0,0.00011,2]
[352726232,1739279441489,-500.0,0.00011,2]
[352726234,1739279441499,-500.0,0.00011,2]
[352726236,1739279441508,-500.0,0.00011,2]
[352726238,1739279441518,-500.0,0.00011,2]
[352726240,1739279441528,-500.0,0.00011,2]
[352726242,1739279441538,-500.0,0.00011,2]
[352726244,1739279441547,-500.0,0.00011,2]
[352726246,1739279441557,-500.0,0.00011,2]
[352726248,1739279441566,-500.0,0.00011,2]
[352726250,1739279441575,-500.0,0.00011,2]
[352726252,1739279441585,-500.0,0.00011,2]
[352726254,1739279441594,-500.0,0.00011,2]
[352726256,1739279441604,-500.0,0.00011,2]
[352726258,1739279441613,-500.0,0.00011,2]
[352726260,1739279441623,-500.0,0.00011,2]
[352726262,1739279441632,-500.0,0.00011,2]
[352726264,1739279441642,-500.0,0.00011,2]
[352726266,1739279441651,-500.0,0.00011,2]
[352726268,1739279441661,-500.0,0.00011,2]
[352726270,1739279441671,-500.0,0.00011,2]
[352726272,1739279441680,-500.0,0.00011,2]
[352726274,1739279441689,-500.0,0.00011,2]
[352726276,1739279441698,-500.0,0.00011,2]
[352726278,1739279441708,-500.0,0.00011,2]
[352726280,1739279441719,-500.0,0.00011,2]
[352726282,1739279441728,-500.0,0.00011,2]
[352726284,1739279441737,-500.0,0.00011,2]
[352726286,1739279441747,-500.0,0.00011,2]
[352726288,1739279441757,-500.0,0.00011,2]
[352726290,1739279441767,-500.0,0.00011,2]
[352726292,1739279441776,-500.0,0.00011,2]
[352726294,1739279441786,-500.0,0.00011,2]
[352726296,1739279441795,-500.0,0.00011,2]
[352726298,1739279441805,-500.0,0.00011,2]
[352726300,1739279441815,-500.0,0.00011,2]
[352726301,1739279441825,-588.18,0.00011,2]
[352726302,1739279441835,-13031.41316134,0.00011018,2]
[352726303,1739279441844,-4274.75519598,0.00011064,2]
[352726304,1739279441853,-500.0,0.00011073,2]
[352726305,1739279441862,-500.95085277,0.00011073,2]
[352726306,1739279441872,-500.56256425,0.00011073,2]
[352726307,1739279441882,-500.0,0.00011073,2]
[352726308,1739279441891,-536.66023355,0.00011073,2]
[352726310,1739279441900,-500.0,0.00011073,2]
[352726312,1739279441910,-500.0,0.00011073,2]
[352726314,1739279441919,-500.14694645,0.00011073,2]
[352726315,1739279441929,-3796.0,0.00011094,7]
[352726316,1739279441940,-561.887,0.00011094,2]
[352726317,1739279441949,-500.0,0.00011094,2]
[352726318,1739279441959,-555.58900408,0.00011094,2]
[352726319,1739279441968,-501.75470528,0.00011095,2]
[352726320,1739279441977,-500.0,0.00011095,2]
[352726321,1739279441986,-500.0,0.00011095,2]
[352726322,1739279441996,-500.0,0.00011095,2]
[352726323,1739279442005,-500.0,0.00011095,2]
[352726324,1739279442014,-487.12821838,0.00011095,2]
[352726325,1739279442024,-500.0,0.00011095,2]
[352726326,1739279442033,-500.0,0.00011095,2]
[352726327,1739279442043,-500.0,0.00011095,2]
[352726328,1739279442052,-500.0,0.00011095,2]
[352726329,1739279442061,-500.0,0.00011095,2]
[352726330,1739279442071,-500.0,0.00011095,2]
[352726331,1739279442080,-400.22611081,0.00011095,2]
[352726332,1739279442089,-500.0,0.00011095,2]
[352726333,1739279442099,-500.0,0.00011095,2]
[352726334,1739279442108,-500.0,0.00011095,2]
[352726335,1739279442118,-500.0,0.00011095,2]
[352726336,1739279442128,-515.78,0.00011095,2]
[352726337,1739279442141,-549.99676208,0.00011095,2]
[352726338,1739279442151,-500.0,0.00011095,2]
[352726339,1739279442162,-500.0,0.00011095,2]
[352726340,1739279442172,-500.0,0.00011095,2]
[352726341,1739279442181,-687.71,0.00011095,2]
[352726342,1739279442191,-500.0,0.00011095,2]
[352726343,1739279442201,-500.0,0.00011095,2]
[352726344,1739279442211,-500.0,0.00011095,2]
[352726345,1739279442221,-500.0,0.00011095,2]
[352726346,1739279442231,-1039.25,0.00011095,2]
[352726347,1739279442241,-564.1877037,0.00011095,2]
[352726348,1739279442250,-852.28,0.00011095,2]
[352726349,1739279442260,-554.4392874,0.00011095,2]
[352726350,1739279442270,-511.71150189,0.00011095,2]
[352726351,1739279442280,-270.23898554,0.00011095,2]
[352726352,1739279442294,-785.31101446,0.00011095,2]
[352726353,1739279442303,-639.42,0.00011095,2]
[352726354,1739279442312,-500.0,0.00011095,2]
[352726355,1739279442448,-500.0,0.00011095,2]
[352726356,1739279442458,-401.57391929,0.00011095,2]
[352726357,1739279442471,-98.42608071,0.00011095,2]
[352726358,1739279442483,-500.71,0.00011095,2]
[352726359,1739279442494,-305.87945444,0.00011095,2]
[352726360,1739279442506,-194.12054556,0.00011095,2]
[352726361,1739279442516,-500.0,0.00011095,2]
[352726362,1739279442525,-1.0559445,0.00011095,2]
[352726363,1739279442558,-226.45,0.00010959,2]
[352726364,1739279442569,-498.9440555,0.00011095,2]
[352726365,1739279442578,-72.04278282,0.00011095,2]
[352726378,1739279443583,-492.55721718,0.00011095,2]
[352726379,1739279443593,-31.27864508,0.00011095,2]
[352726380,1739279443605,-468.72135492,0.00011095,2]
[352726381,1739279443615,-64.23185068,0.00011095,2]
[352726397,1739279446524,-505.52299536,0.00010958,2]
[352726399,1739279446534,-500.0,0.00010958,2]
[352726401,1739279446544,-454.49221594,0.00010958,2]
[352726403,1739279446557,-45.50778406,0.00010958,2]
[352726404,1739279446566,-349.71549179,0.00011095,2]
[352726407,1739279446584,-86.05265753,0.00011095,2]
[352726409,1739279446594,-500.0,0.00011095,2]
[352726411,1739279446604,-611.32,0.00011095,2]
[352726413,1739279446613,-500.0,0.00011095,2]
[352726414,1739279446623,-1114.27,0.00011095,2]
[352726416,1739279446632,-175.89589643,0.00011095,2]
[352726418,1739279446642,-762.61,0.00011095,2]
[352726420,1739279446652,-884.93,0.00011095,2]
[352726422,1739279446662,-500.0,0.00011095,2]
[352726424,1739279446671,-500.0,0.00011095,2]
[352726426,1739279446680,-500.0,0.00011095,2]
[352726427,1739279446690,-224.82960856,0.00011095,2]
[352726430,1739279446719,-500.0,0.00011095,2]
[352726432,1739279446765,-500.0,0.00011095,2]
[352726433,1739279446825,-696.76,0.00011095,2]
[352726435,1739279446911,-500.0,0.00011095,2]
[352726438,1739279447031,-667.33,0.00011095,2]
[352726440,1739279447153,-500.0,0.00011095,2]
[352726442,1739279447293,-543.58458172,0.00011095,2]
[352726444,1739279447391,-500.0,0.00011095,2]
[352726446,1739279447506,-508.02725149,0.00011095,2]
[352726448,1739279447614,-500.0,0.00011095,2]
[352726450,1739279447754,-500.0,0.00011095,2]
[352726452,1739279447869,-500.0,0.00011095,2]
[352726454,1739279447908,-500.0,0.00011095,2]
[352726456,1739279447918,-500.0,0.00011095,2]
[352726458,1739279447928,-500.0,0.00011095,2]
[352726460,1739279447938,-500.0,0.00011095,2]
[352726462,1739279447948,-675.37,0.00011095,2]
[352726463,1739279447957,-500.0,0.00011095,2]
[352726465,1739279447968,-1595.82,0.00011095,2]
[352726467,1739279447978,-500.0,0.00011095,2]
[352726469,1739279447988,-708.4,0.00011095,2]
[352726471,1739279447998,-500.0,0.00011095,2]
[352726473,1739279448008,-500.0,0.00011095,2]
[352726474,1739279448019,-842.32,0.00011095,2]
[352726476,1739279448029,-2296.75,0.00011095,2]
[352726478,1739279448040,-4247.55,0.00011095,2]
[352726480,1739279448050,-500.0,0.00011095,2]
[352726482,1739279448060,-500.0,0.00011095,2]
[352726484,1739279448071,-500.0,0.00011095,2]
[352726486,1739279448081,-905.66,0.00011095,2]
[352726487,1739279448092,-2990.42,0.00011095,2]
[352726489,1739279448103,-500.0,0.00011095,2]
[352726491,1739279448113,-500.0,0.00011095,2]
[352726493,1739279448123,-885.24,0.00011095,2]
[352726495,1739279448133,-1583.44,0.00011095,2]
[352726497,1739279448143,-500.0,0.00011095,2]
[352726498,1739279448153,-1207.48,0.00011095,2]
[352726500,1739279448163,-500.0,0.00011095,2]
[352726502,1739279448173,-500.0,0.00011095,2]
[352726504,1739279448183,-32082.67,0.00011095,2]
[352726506,1739279448193,-500.0,0.00011095,2]
[352726508,1739279448203,-500.0,0.00011095,2]
[352726509,1739279448213,-587.92,0.00011095,2]
[352726511,1739279448225,-500.0,0.00011095,2]
[352726513,1739279448235,-14521.38,0.00011095,2]
[352726515,1739279448246,-500.0,0.00011095,2]
[352726517,1739279448255,-1696.95,0.00011095,2]
[352726519,1739279448267,-1959.29,0.00011095,2]
[352726521,1739279448276,-500.0,0.00011095,2]
[352726522,1739279448286,-1174.61,0.00011095,2]
[352726524,1739279448296,-628.02,0.00011095,2]
[352726526,1739279448307,-1040.42,0.00011095,2]
[352726528,1739279448318,-1643.53,0.00011095,2]
[352726529,1739279448327,-500.0,0.00011095,2]
[352726531,1739279448337,-500.0,0.00011095,2]
[352726533,1739279448347,-500.0,0.00011095,2]
[352726535,1739279448359,-500.0,0.00011095,2]
[352726537,1739279448369,-500.0,0.00011095,2]
[352726539,1739279448379,-772.0,0.00011095,2]
[352726540,1739279448389,-500.0,0.00011095,2]
[352726542,1739279448401,-500.0,0.00011095,2]
[352726544,1739279448413,-500.0,0.00011095,2]
[352726546,1739279448423,-598.24,0.00011095,2]
[352726548,1739279448439,-638.27,0.00011095,2]
[352726550,1739279448450,-500.0,0.00011095,2]
[352726552,1739279448461,-500.0,0.00011095,2]
[352726554,1739279448473,-500.0,0.00011095,2]
[352726556,1739279448486,-532.81,0.00011095,2]
[352726558,1739279448497,-500.0,0.00011095,2]
[352726560,1739279448509,-500.0,0.00011095,2]
[352726562,1739279448519,-2139.88,0.00011095,2]
[352726564,1739279448530,-500.0,0.00011095,2]
[352726565,1739279448540,-526.63,0.00011095,2]
[352726567,1739279448550,-822.36,0.00011095,2]
[352726569,1739279448564,-769.14,0.00011095,2]
[352726571,1739279448576,-500.0,0.00011095,2]
[352726573,1739279448588,-1220.04,0.00011095,2]
[352726575,1739279448599,-2857.7,0.00011095,2]
[352726577,1739279448610,-500.0,0.00011095,2]
[352726579,1739279448620,-500.0,0.00011095,2]
[352726581,1739279448630,-500.0,0.00011095,2]
[352726583,1739279448642,-500.0,0.00011095,2]
[352726584,1739279448653,-683.18,0.00011095,2]
[352726586,1739279448663,-500.0,0.00011095,2]
[352726588,1739279448674,-1341.11,0.00011095,2]
[352726590,1739279448684,-1398.12,0.00011095,2]
[352726592,1739279448694,-642.55926524,0.00011095,2]
[352726594,1739279448705,-5083.62,0.00011095,2]
[352726595,1739279448715,-1178.99,0.00011095,2]
[352726597,1739279448727,-500.0,0.00011095,2]
[352726599,1739279448737,-500.0,0.00011095,2]
[352726601,1739279448748,-792.97,0.00011095,2]
[352726603,1739279448758,-500.0,0.00011095,2]
[352726605,1739279448770,-502.24413204,0.00011095,2]
[352726607,1739279448780,-526.29,0.00011095,2]
[352726609,1739279448791,-500.0,0.00011095,2]
[352726611,1739279448801,-500.0,0.00011095,2]
[352726613,1739279448811,-500.0,0.00011095,2]
[352726615,1739279448822,-565.38,0.00011095,2]
[352726617,1739279448833,-828.4,0.00011095,2]
[352726619,1739279448844,-1636.11,0.00011095,2]
[352726621,1739279448855,-500.0,0.00011095,2]
[352726623,1739279448865,-500.0,0.00011095,2]
[352726625,1739279448877,-690.35,0.00011095,2]
[352726627,1739279448887,-568.03,0.00011095,2]
[352726628,1739279448898,-2550.61,0.00011095,2]
[352726629,1739279448909,-500.0,0.00011095,2]
[352726630,1739279448919,-769.56,0.00011095,2]
[352726631,1739279448931,-2187.44,0.00011095,2]
[352726632,1739279448941,-500.0,0.00011095,2]
[352726633,1739279448952,-500.0,0.00011095,2]
[352726634,1739279448964,-4358.28,0.00011095,2]
[352726635,1739279448976,-9399.26,0.00011095,2]
[352726636,1739279448986,-621.6,0.00011095,2]
[352726637,1739279448996,-500.0,0.00011095,2]
[352726638,1739279449005,-2208.14,0.00011095,2]
[352726639,1739279449015,-500.0,0.00011095,2]
[352726640,1739279449025,-500.0,0.00011095,2]
[352726641,1739279449035,-500.0,0.00011095,2]
[352726642,1739279449045,-168.24611049,0.00011096,2]
[352726643,1739279449056,-4274.75519598,0.00011132,2]
[352726644,1739279449066,-2200.0,0.00011198,2]
[352726645,1739279449076,-29649.81481585,0.00011232,4]
[352726646,1739279449086,-500.0,0.00011232,2]
[352726647,1739279449096,-500.0,0.00011232,2]
[352726648,1739279449105,-500.0,0.00011232,2]
[352726649,1739279449115,-500.0,0.00011232,2]
[352726650,1739279449125,-500.0,0.00011232,2]
[352726651,1739279449135,-200.23333039,0.00011232,2]
[352726652,1739279449146,-500.0,0.00011232,2]
[352726653,1739279449157,-500.0,0.00011232,2]
[352726654,1739279449167,-500.0,0.00011232,2]
[352726655,1739279449177,-500.0,0.00011232,2]
[352726656,1739279449188,-500.0,0.00011232,2]
[352726657,1739279449198,-500.0,0.00011232,2]
[352726658,1739279449208,-500.0,0.00011232,2]
[352726659,1739279449219,-500.0,0.00011232,2]
[352726660,1739279449230,-515.78,0.00011232,2]
[352726661,1739279449244,-500.0,0.00011232,2]
[352726662,1739279449254,-500.0,0.00011232,2]
[352726663,1739279449305,-500.0,0.00011232,2]
[352726665,1739279449316,-687.71,0.00011232,2]
[352726666,1739279449326,-627.5343249,0.00011232,2]
[352726668,1739279449337,-500.0,0.00011232,2]
[352726669,1739279449348,-509.84641618,0.00011232,2]
[352726671,1739279449359,-500.0,0.00011232,2]
[352726673,1739279449370,-1039.25,0.00011232,2]
[352726675,1739279449380,-852.28,0.00011232,2]
[352726677,1739279449391,-1055.55,0.00011232,2]
[352726679,1739279449403,-639.42,0.00011232,2]
[352726681,1739279449415,-500.0,0.00011232,2]
[352726683,1739279449426,-500.0,0.00011232,2]
[352726685,1739279449439,-500.0,0.00011232,2]
[352726687,1739279449450,-500.71,0.00011232,2]
[352726689,1739279449462,-500.0,0.00011232,2]
[352726691,1739279449474,-500.0,0.00011232,2]
[352726693,1739279449486,-500.0,0.00011232,2]
[352726695,1739279449496,-564.6,0.00011232,2]
[352726697,1739279449506,-500.0,0.00011232,2]
[352726699,1739279449523,-500.0,0.00011232,2]
[352726701,1739279449533,-500.0,0.00011232,2]
[352726703,1739279449543,-611.32,0.00011232,2]
[352726705,1739279449553,-500.0,0.00011232,2]
[352726707,1739279449562,-1114.27,0.00011232,2]
[352726709,1739279449572,-762.61,0.00011232,2]
[352726711,1739279449583,-884.93,0.00011232,2]
[352726713,1739279449592,-500.0,0.00011232,2]
[352726715,1739279449602,-500.0,0.00011232,2]
[352726717,1739279449613,-500.0,0.00011232,2]
[352726719,1739279449626,-500.0,0.00011232,2]
[352726721,1739279449636,-539.48273489,0.00011232,2]
[352726723,1739279449646,-696.76,0.00011232,2]
[352726725,1739279449655,-500.0,0.00011232,2]
[352726727,1739279449665,-667.33,0.00011232,2]
[352726729,1739279449674,-500.0,0.00011232,2]
[352726731,1739279449685,-500.0,0.00011232,2]
[352726733,1739279449695,-197.21505485,0.00011232,2]
[352726734,1739279449704,-500.0,0.00011232,2]
[352726735,1739279449714,-500.0,0.00011232,2]
[352726737,1739279449723,-500.0,0.00011232,2]
[352726739,1739279449733,-500.0,0.00011232,2]
[352726741,1739279449742,-500.0,0.00011232,2]
[352726743,1739279449751,-515.56393205,0.00011232,2]
[352726745,1739279449762,-675.37,0.00011232,2]
[352726746,1739279449772,-500.0,0.00011232,2]
[352726747,1739279449782,-1595.82,0.00011232,2]
[352726748,1739279449793,-500.0,0.00011232,2]
[352726749,1739279449801,-708.4,0.00011232,2]
[352726750,1739279449811,-500.0,0.00011232,2]
[352726751,1739279449820,-500.0,0.00011232,2]
[352726752,1739279449830,-842.32,0.00011232,2]
[352726753,1739279449839,-2296.75,0.00011232,2]
[352726754,1739279449849,-4247.55,0.00011232,2]
[352726755,1739279449860,-500.0,0.00011232,2]
[352726756,1739279449870,-500.0,0.00011232,2]
[352726757,1739279449879,-500.0,0.00011232,2]
[352726758,1739279449890,-905.66,0.00011232,2]
[352726759,1739279449899,-2990.42,0.00011232,2]
[352726760,1739279449910,-500.0,0.00011232,2]
[352726761,1739279449921,-500.0,0.00011232,2]
[352726762,1739279449931,-885.24,0.00011232,2]
[352726763,1739279449941,-1583.44,0.00011232,2]
[352726764,1739279449951,-500.0,0.00011232,2]
[352726765,1739279449962,-1207.48,0.00011232,2]
[352726766,1739279449973,-500.0,0.00011232,2]
[352726767,1739279449983,-500.0,0.00011232,2]
[352726768,1739279449993,-32082.67,0.00011232,2]
[352726769,1739279450003,-500.0,0.00011232,2]
[352726770,1739279450014,-500.0,0.00011232,2]
[352726771,1739279450024,-587.92,0.00011232,2]
[352726772,1739279450034,-500.0,0.00011232,2]
[352726773,1739279450044,-14521.38,0.00011232,2]
[352726774,1739279450055,-500.0,0.00011232,2]
[352726775,1739279450066,-1696.95,0.00011232,2]
[352726776,1739279450075,-1959.29,0.00011232,2]
[352726777,1739279450086,-500.0,0.00011232,2]
[352726778,1739279450096,-1174.61,0.00011232,2]
[352726779,1739279450106,-628.02,0.00011232,2]
[352726780,1739279450116,-1040.42,0.00011232,2]
[352726781,1739279450125,-1643.53,0.00011232,2]
[352726782,1739279450134,-500.0,0.00011232,2]
[352726783,1739279450144,-500.0,0.00011232,2]
[352726784,1739279450153,-500.0,0.00011232,2]
[352726785,1739279450163,-500.0,0.00011232,2]
[352726786,1739279450173,-500.0,0.00011232,2]
[352726787,1739279450183,-772.0,0.00011232,2]
[352726788,1739279450193,-500.0,0.00011232,2]
[352726789,1739279450202,-500.0,0.00011232,2]
[352726790,1739279450211,-500.0,0.00011232,2]
[352726791,1739279450221,-598.24,0.00011232,2]
[352726792,1739279450231,-638.27,0.00011232,2]
[352726793,1739279450240,-500.0,0.00011232,2]
[352726794,1739279450250,-500.0,0.00011232,2]
[352726795,1739279450260,-500.0,0.00011232,2]
[352726796,1739279450269,-532.81,0.00011232,2]
[352726797,1739279450278,-500.0,0.00011232,2]
[352726798,1739279450288,-305.22636329,0.00011232,2]
[352726799,1739279450298,-2139.88,0.00011232,2]
[352726800,1739279450308,-500.0,0.00011232,2]
[352726801,1739279450318,-526.63,0.00011232,2]
[352726802,1739279450327,-822.36,0.00011232,2]
[352726803,1739279450336,-769.14,0.00011232,2]
[352726804,1739279450346,-500.0,0.00011232,2]
[352726805,1739279450355,-1220.04,0.00011232,2]
[352726806,1739279450365,-2857.7,0.00011232,2]
[352726807,1739279450373,-500.0,0.00011232,2]
[352726808,1739279450383,-500.0,0.00011232,2]
[352726809,1739279450393,-500.0,0.00011232,2]
[352726810,1739279450409,-500.0,0.00011232,2]
[352726811,1739279450418,-683.18,0.00011232,2]
[352726812,1739279450429,-500.0,0.00011232,2]
[352726813,1739279450441,-1341.11,0.00011232,2]
[352726814,1739279450451,-1398.12,0.00011232,2]
[352726815,1739279450462,-5083.62,0.00011232,2]
[352726816,1739279450474,-1178.99,0.00011232,2]
[352726817,1739279450484,-500.0,0.00011232,2]
[352726818,1739279450495,-500.0,0.00011232,2]
[352726819,1739279450505,-792.97,0.00011232,2]
[352726820,1739279450516,-500.0,0.00011232,2]
[352726821,1739279450526,-526.29,0.00011232,2]
[352726822,1739279450536,-500.0,0.00011232,2]
[352726823,1739279450547,-500.0,0.00011232,2]
[352726824,1739279450557,-500.0,0.00011232,2]
[352726825,1739279450568,-565.38,0.00011232,2]
[352726826,1739279450580,-828.4,0.00011232,2]
[352726827,1739279450592,-1636.11,0.00011232,2]
[352726828,1739279450604,-500.0,0.00011232,2]
[352726829,1739279450615,-500.0,0.00011232,2]
[352726830,1739279450627,-568.03,0.00011232,2]
[352726831,1739279450639,-2550.61,0.00011232,2]
[352726832,1739279450649,-690.35,0.00011232,2]
[352726833,1739279450660,-500.0,0.00011232,2]
[352726834,1739279450671,-769.56,0.00011232,2]
[352726835,1739279450682,-2187.44,0.00011232,2]
[352726836,1739279450694,-646.6816538,0.00011232,2]
[352726837,1739279450705,-500.0,0.00011232,2]
[352726838,1739279450715,-4358.28,0.00011232,2]
[352726839,1739279450733,-9399.26,0.00011232,2]
[352726840,1739279450743,-621.6,0.00011232,2]
[352726841,1739279450754,-500.0,0.00011232,2]
[352726842,1739279450766,-2208.14,0.00011232,2]
[352726843,1739279450777,-500.0,0.00011232,2]
[352726844,1739279450788,-500.0,0.00011232,2]
[352726845,1739279450800,-500.0,0.00011232,2]
[352726846,1739279450811,-168.24611049,0.00011233,2]
[352726847,1739279450821,-151.0,0.000113,2]
[352726848,1739279450831,-500.0,0.00011369,2]
[352726849,1739279450842,-159.13856119,0.00011369,2]
[352726850,1739279450852,-500.0,0.00011369,2]
[352726851,1739279450863,-500.0,0.00011369,2]
[352726852,1739279450874,-500.0,0.00011369,2]
[352726853,1739279450885,-500.0,0.00011369,2]
[352726854,1739279450896,-500.0,0.00011369,2]
[352726855,1739279450907,-500.0,0.00011369,2]
[352726856,1739279450917,-500.0,0.00011369,2]
[352726857,1739279450928,-500.0,0.00011369,2]
[352726858,1739279450938,-500.0,0.00011369,2]
[352726859,1739279450948,-500.0,0.00011369,2]
[352726860,1739279450959,-630.01253473,0.00011369,2]
[352726861,1739279450975,-515.78,0.00011369,2]
[352726862,1739279450986,-500.0,0.00011369,2]
[352726863,1739279450997,-500.0,0.00011369,2]
[352726864,1739279451007,-500.0,0.00011369,2]
[352726865,1739279451017,-687.71,0.00011369,2]
[352726866,1739279451028,-623.61616402,0.00011369,2]
[352726867,1739279451038,-500.0,0.00011369,2]
[352726868,1739279451049,-1039.25,0.00011369,2]
[352726869,1739279451059,-852.28,0.00011369,2]
[352726870,1739279451070,-1055.55,0.00011369,2]
[352726871,1739279451080,-639.42,0.00011369,2]
[352726872,1739279451090,-500.0,0.00011369,2]
[352726873,1739279451101,-500.0,0.00011369,2]
[352726874,1739279451111,-500.0,0.00011369,2]
[352726875,1739279451121,-500.71,0.00011369,2]
[352726876,1739279451131,-500.0,0.00011369,2]
[352726877,1739279451142,-500.0,0.00011369,2]
[352726878,1739279451152,-500.0,0.00011369,2]
[352726879,1739279451164,-564.6,0.00011369,2]
[352726880,1739279451174,-500.0,0.00011369,2]